Workbook

Sheet Portada
A27: Actualización: Enero, 2015.
A28: Dr. Gustavo Mora Aguilera
A29: Coordinador-LANREF

Sheet Muestreo Transectual NO Pond
A1: Criterios del Transecto:
J2: Ecuaciones de cálculo
B3: Fecha de muestreo: | C3: 2015-01-10 | G3: Indicar Sitios por Transecto | J3: 1. Ecuación general
G4: Ni = | H4: 9 | EQ4: 3
B5: Nombre del Técnico: | EK5: 0 | EL5: 0 | EM5: 0 | EQ5: 6
J6: 2. Ecuación integrada en MS Excel | EK6: 1 | EL6: =C15 -> 9.27 | EM6: =EL6 -> 9.27 | EQ6: 9
B7: Número de Transecto: | EK7: =IF(EK6="","",IF((EK6+1)>$H$4,"",EK6+1)) -> 2 | EL7: =IF(EK7="","",EL6+$C$13) -> 20.61 | EM7: =EL7 -> 20.61 | EQ7: 10
H8: =INT(G8) -> 0 | N8: > Sitios de muestreo en el transecto | EK8: =IF(EK7="","",IF((EK7+1)>$H$4,"",EK7+1)) -> 3 | EL8: =IF(EK8="","",EL7+$C$13) -> 31.95 | EM8: 31.95 | EQ8: 12
B9: Municipios del Transecto: | H9: 0 | N9: # Sitio | O9: Rango de ubicación sitio (km) | EK9: 4 | EL9: 43.29 | EM9: 43.29 | EQ9: 15
N10: 0 | O10: Ubicar cada sitio entre: | EK10: 5 | EL10: 54.63 | EM10: 54.63
B11: Distancia del Transecto: | C11: =D11 -> 100 | D11: 100 | N11: =IF(N10="","",IF((N10+1)>$H$4,"",N10+1)) -> 1 | O11: =IF('Muestreo Transectual NO Pond'!$N11="","",EL6-((LOG(EL6))/2)) -> 8.786460133 | P11: =IF('Muestreo Transectual NO Pond'!$N11="","",EL6+((LOG(EL6))/2)) -> 9.753539867 | EK11: 6 | EL11: 65.97 | EM11: 65.97
N12: =IF(N11="","",IF((N11+1)>$H$4,"",N11+1)) -> 2 | O12: =IF('Muestreo Transectual NO Pond'!$N12="","",EL7-((LOG(EL7))/2)) -> 19.952961 | P12: =IF('Muestreo Transectual NO Pond'!$N12="","",EL7+((LOG(EL7))/2)) -> 21.267039 | EK12: 7 | EL12: 77.31 | EM12: 77.31
B13: Distancia entre sitios: | C13: 11.34 | N13: 3 | O13: =IF('Muestreo Transectual NO Pond'!$N13="","",EL8-((LOG(EL8))/2)) -> 31.19776457 | P13: =IF('Muestreo Transectual NO Pond'!$N13="","",EL8+((LOG(EL8))/2)) -> 32.70223543 | EK13: 8 | EL13: 88.65 | EM13: 88.65
N14: 4 | O14: =IF('Muestreo Transectual NO Pond'!$N14="","",EL9-((LOG(EL9))/2)) -> 42.47180621 | P14: =IF('Muestreo Transectual NO Pond'!$N14="","",EL9+((LOG(EL9))/2)) -> 44.10819379 | EK14: 9 | EL14: 99.99 | EM14: 99.99
B15: Distancia Inicial: | C15: 9.27 | N15: 5 | O15: =IF('Muestreo Transectual NO Pond'!$N15="","",EL10-((LOG(EL10))/2)) -> 53.7612844 | P15: =IF('Muestreo Transectual NO Pond'!$N15="","",EL10+((LOG(EL10))/2)) -> 55.4987156
N16: 6 | O16: =IF('Muestreo Transectual NO Pond'!$N16="","",EL11-((LOG(EL11))/2)) -> 65.06032676 | P16: =IF('Muestreo Transectual NO Pond'!$N16="","",EL11+((LOG(EL11))/2)) -> 66.87967324
N17: 7 | O17: =IF('Muestreo Transectual NO Pond'!$N17="","",EL12-((LOG(EL12))/2)) -> 76.36588216 | P17: =IF('Muestreo Transectual NO Pond'!$N17="","",EL12+((LOG(EL12))/2)) -> 78.25411784
N18: 8 | O18: =IF('Muestreo Transectual NO Pond'!$N18="","",EL13-((LOG(EL13))/2)) -> 87.67616063 | P18: =IF('Muestreo Transectual NO Pond'!$N18="","",EL13+((LOG(EL13))/2)) -> 89.62383937
N19: 9 | O19: =IF('Muestreo Transectual NO Pond'!$N19="","",EL14-((LOG(EL14))/2)) -> 98.99002172 | P19: =IF('Muestreo Transectual NO Pond'!$N19="","",EL14+((LOG(EL14))/2)) -> 100.9899783
O20: =IF('Muestreo Transectual NO Pond'!$N20="","",EL15-((LOG(EL15))/2)) ->  | P20: =IF('Muestreo Transectual NO Pond'!$N20="","",EL15+((LOG(EL15))/2)) -> 
C21: 3 | E21: 6 | G21: 9 | H21: 10 | I21: 12 | K21: 15 | O21: =IF('Muestreo Transectual NO Pond'!$N21="","",EL16-((LOG(EL16))/2)) ->  | P21: =IF('Muestreo Transectual NO Pond'!$N21="","",EL16+((LOG(EL16))/2)) -> 
B22: =TEXT((A26)/(H4-1),"0.00") -> 11.81 | F22: =" "&TEXT(B22,"0.0")&"km"&" "&"+/-"&TEXT(LOG(B22),"0.00") & "km" -> 11.8km +/-1.07km | O22: =IF('Muestreo Transectual NO Pond'!$N22="","",EL17-((LOG(EL17))/2)) ->  | P22: =IF('Muestreo Transectual NO Pond'!$N22="","",EL17+((LOG(EL17))/2)) ->  | DP22: =L18 -> 0
F23: =" "&TEXT(B24,"0.0")&"km"&" "&"+/-"&TEXT(LOG(B24),"0.00") & "km" -> 5.5km +/-0.74km | O23: =IF('Muestreo Transectual NO Pond'!$N23="","",EL18-((LOG(EL18))/2)) ->  | P23: =IF('Muestreo Transectual NO Pond'!$N23="","",EL18+((LOG(EL18))/2)) -> 
B24: =TEXT(A27,"0.00") -> 5.48 | O24: =IF('Muestreo Transectual NO Pond'!$N24="","",EL19-((LOG(EL19))/2)) ->  | P24: =IF('Muestreo Transectual NO Pond'!$N24="","",EL19+((LOG(EL19))/2)) -> 
O25: =IF('Muestreo Transectual NO Pond'!$N25="","",EL20-((LOG(EL20))/2)) ->  | P25: =IF('Muestreo Transectual NO Pond'!$N25="","",EL20+((LOG(EL20))/2)) -> 
A26: =D11-A27 -> 94.51563043
A27: =RANDBETWEEN(1,10)+RAND() -> 5.484369572
N28: =B22 -> 11.81
N30: =B24 -> 5.48
